{"text_format":"3","workbook":"xlsx","n_sheets":2,"sheets":["UTILIZAREA REGISTRULUI DE LUCRU","CATALOG"],"not_rendered":{"defined_names":5},"read":"whole","date_system":"1900"}

{"sheet":"UTILIZAREA REGISTRULUI DE LUCRU","index":0,"n_rows":10,"n_cols":2,"rows_kept":10}
[null,"INSTRUCȚIUNI"]
[null,"Utilizați foaia de lucru CATALOG pentru a calcula notele, unde fiecare temă este echivalată cu un număr stabilit de puncte. "]
[null,"Instrucțiuni: Asigurați-vă că salvați copii backup ale notelor dvs."]
[null,"1. Completați cu numele școlii, informații despre curs, numele elevilor și ID-urile lor (opțional).   "]
[null,"2. Ajustați tabelul de Note și medie generală pentru a se potrivi cu sistemul de note tipic utilizat."]
[null,"3. Completați numele temelor sau testelor începând cu celula G7, împreună cu procentul valorii fiecăruia (de exemplu, „Final” și „50%”). "]
[null,"4. Completați rezultatele pentru fiecare elev, pentru fiecare temă sau testare. Coloanele „Scor”, „Calificativ literă” și „generală” sunt calculate automat, dar le puteți înlocui dacă doriți. Modul în care sunt calculate notele, media și nota finală sunt incomplete până la completarea cu toate notele."]
[null,"Utilizați comanda „Zonă de imprimare” din meniul Aspect pagină dacă doriți să schimbați zona care se imprimă."]
[null,"Scorul, calificativul Calificativ literă și media generală nu sunt valide până la finalizarea 100% a testelor și temelor. "]
[null,"Introduceți fiecare temă sau test și procentul lor din nota totală în celulele G7-W8."]

{"sheet":"CATALOG","index":1,"n_rows":20,"n_cols":23,"rows_kept":20,"merged":[[5,1,5,5],[6,1,6,3],[6,4,6,5],[7,1,8,3],[7,4,7,5],[8,4,8,5],[15,1,15,5],[16,1,16,2],[17,1,17,2],[18,1,18,2],[19,1,19,2]]}
[null,"NUMELE ȘCOLII"]
[]
[{"$nulls":6},"Scor",{"v":0,"d":"0%"},{"v":0.6,"d":"60%"},{"v":0.63,"d":"63%"},{"v":0.67,"d":"67%"},{"v":0.7,"d":"70%"},{"v":0.73,"d":"73%"},{"v":0.77,"d":"77%"},{"v":0.8,"d":"80%"},{"v":0.83,"d":"83%"},{"v":0.87,"d":"87%"},{"v":0.9,"d":"90%"},{"v":0.93,"d":"93%"},{"v":0.97,"d":"97%"}]
[{"$nulls":6},"Calificativ literă","F","D-","D","D+","C-","C","C+","B-","B","B+","A-","A","A+"]
[{"$nulls":6},"Medie generală",0,0.67,1,1.33,1.67,2,2.33,2.67,3,3.33,3.67,4,4]
[null,"Numele profesorului"]
[null,"Curs/proiect",null,null,"Numele temei sau testului"]
[null,"An/semestru/trimestru",null,null,"Procent (total trebuie să fie 100%)"]
[{"$nulls":4},{"$f":"\"Procentul total: \"&SUM(G8:W8)*100&\"%\"","v":"Procentul total: 0%"}]
[null,"Numele elevului","ID elev","Scor","Calificativ literă","Medie generală","Coloana6","Coloana7","Coloana8","Coloana9","Coloana10","Coloana11","Coloana12","Coloana13","Coloana14","Coloana15","Coloana16","Coloana17","Coloana18","Coloana19","Coloana20","Coloana21","Coloana22"]
[{"$nulls":3},{"$f":"(IF(SUM(Note[[#This Row],[Coloana6]:[Coloana22]]),ROUND(SUMPRODUCT($G$8:$W$8,Note[[#This Row],[Coloana6]:[Coloana22]]),2),\"\"))","v":""},{"$f":"IF(Note[[#This Row],[Scor]]<>\"\",HLOOKUP(Note[[#This Row],[Scor]],Catalog,2),\"\")","v":""},{"$f":"IF(Note[[#This Row],[Scor]]<>\"\",HLOOKUP(Note[[#This Row],[Scor]],Catalog,3),\"\")","v":""}]
[{"$nulls":3},{"$f":"(IF(SUM(Note[[#This Row],[Coloana6]:[Coloana22]]),ROUND(SUMPRODUCT($G$8:$W$8,Note[[#This Row],[Coloana6]:[Coloana22]]),2),\"\"))","v":""},{"$f":"IF(Note[[#This Row],[Scor]]<>\"\",HLOOKUP(Note[[#This Row],[Scor]],Catalog,2),\"\")","v":""},{"$f":"IF(Note[[#This Row],[Scor]]<>\"\",HLOOKUP(Note[[#This Row],[Scor]],Catalog,3),\"\")","v":""}]
[{"$nulls":3},{"$f":"(IF(SUM(Note[[#This Row],[Coloana6]:[Coloana22]]),ROUND(SUMPRODUCT($G$8:$W$8,Note[[#This Row],[Coloana6]:[Coloana22]]),2),\"\"))","v":""},{"$f":"IF(Note[[#This Row],[Scor]]<>\"\",HLOOKUP(Note[[#This Row],[Scor]],Catalog,2),\"\")","v":""},{"$f":"IF(Note[[#This Row],[Scor]]<>\"\",HLOOKUP(Note[[#This Row],[Scor]],Catalog,3),\"\")","v":""}]
[{"$nulls":3},{"$f":"(IF(SUM(Note[[#This Row],[Coloana6]:[Coloana22]]),ROUND(SUMPRODUCT($G$8:$W$8,Note[[#This Row],[Coloana6]:[Coloana22]]),2),\"\"))","v":""},{"$f":"IF(Note[[#This Row],[Scor]]<>\"\",HLOOKUP(Note[[#This Row],[Scor]],Catalog,2),\"\")","v":""},{"$f":"IF(Note[[#This Row],[Scor]]<>\"\",HLOOKUP(Note[[#This Row],[Scor]],Catalog,3),\"\")","v":""}]
[{"$nulls":3},{"$f":"(IF(SUM(Note[[#This Row],[Coloana6]:[Coloana22]]),ROUND(SUMPRODUCT($G$8:$W$8,Note[[#This Row],[Coloana6]:[Coloana22]]),2),\"\"))","v":""},{"$f":"IF(Note[[#This Row],[Scor]]<>\"\",HLOOKUP(Note[[#This Row],[Scor]],Catalog,2),\"\")","v":""},{"$f":"IF(Note[[#This Row],[Scor]]<>\"\",HLOOKUP(Note[[#This Row],[Scor]],Catalog,3),\"\")","v":""}]
[]
[null,"Rezumat curs",null,"Scor","Calificativ literă","Medie generală","","","","","","","","","","",""]
[null," Medie",null,{"$f":"IFERROR(AVERAGE(Note[[#All],[Scor]]),0)","v":{"v":0,"d":"0.0%"}},{"$f":"IFERROR(HLOOKUP(D18,Catalog,2),\"\")","v":"F"},{"$f":"IFERROR(AVERAGE(Note[[#All],[Medie generală]]),0)","v":0},"","","","","","","","","","","","","","","","",""]
[null," Scor maxim",null,{"$f":"IFERROR(MAX(Note[[#All],[Scor]]),0)","v":{"v":0,"d":"0.0%"}},{"$f":"IFERROR(HLOOKUP(D19,Catalog,2),\"\")","v":"F"},{"$f":"IFERROR(MAX(Note[[#All],[Medie generală]]),0)","v":0},"","","","","","","","","","","","","","","","",""]
[null," Scor minim",null,{"$f":"IFERROR(MIN(Note[[#All],[Scor]]),0)","v":{"v":0,"d":"0.0%"}},{"$f":"IFERROR(HLOOKUP(D20,Catalog,2),\"\")","v":"F"},{"$f":"IFERROR(MIN(Note[[#All],[Medie generală]]),0)","v":0},"","","","","","","","","","","","","","","","",""]